bitfinex-derivatives/quotes_BTCF0:USTF0_20250114
["timestamp","ask_amount","ask_price","bid_price","bid_amount"]
[1736876165752,0.007,95874.0,95873.0,0.05218]
[1736876167560,0.052171,95891.0,95885.0,0.052174]
[1736876167760,0.0333,95897.0,95885.0,0.052174]
[1736876167761,0.3941,95897.0,95885.0,0.052174]
[1736876167963,0.052171,95890.0,95885.0,0.052174]
[1736876168763,0.00542,95886.0,95885.0,0.052174]
[1736876169166,0.1,95900.0,95895.0,0.052169]
[1736876169353,0.1,95900.0,95895.0,0.412969]
[1736876170160,0.24863281,95908.0,95907.0,0.052162]
[1736876170363,0.052157,95917.0,95903.0,0.3608]
[1736876170564,0.052157,95917.0,95914.0,0.052158]
[1736876170967,0.37115299,95916.0,95914.0,0.052158]
[1736876171662,0.37915299,95916.0,95914.0,0.052158]
[1736876172066,0.37115299,95916.0,95914.0,0.052158]
[1736876172270,0.38015299,95916.0,95914.0,0.053158]
[1736876172570,0.43830999,95916.0,95914.0,0.054158]
[1736876172871,0.43830999,95916.0,95914.0,0.002]
[1736876174764,0.3758,95916.0,95914.0,0.002]
[1736876174962,0.015,95916.0,95915.0,0.412958]
[1736876175174,0.01032587,95920.0,95915.0,0.445758]
[1736876175475,0.01032587,95920.0,95919.0,0.05103067]
[1736876175774,0.052149,95932.0,95916.0,0.0336]
[1736876175971,0.00156424,95934.0,95916.0,0.0336]
[1736876176273,0.05215,95930.0,95925.0,0.3608]
[1736876176869,0.01180988,95934.0,95915.0,0.3936]
[1736876177080,0.052155,95921.0,95915.0,0.3966]
[1736876177373,0.01180988,95934.0,95925.0,0.052152]
[1736876177374,0.052152,95927.0,95925.0,0.052152]
[1736876177769,0.001,95930.0,95929.0,0.05215]
[1736876178165,0.052149,95931.0,95929.0,0.05215]
[1736876179469,0.053149,95931.0,95929.0,0.05215]
[1736876179868,0.001,95931.0,95929.0,0.05215]
[1736876180071,0.001,95931.0,95930.0,0.0344]
[1736876180368,0.0337,95968.0,95930.0,0.3952]
[1736876180568,0.0358,95968.0,95956.0,0.3608]
[1736876180789,0.3608,95980.0,95966.0,0.3608]
[1736876180974,0.3608,95980.0,95970.0,0.11496212]
[1736876181171,0.3608,95980.0,95978.0,0.052123]
[1736876181368,0.052118,95988.0,95984.0,0.05212]
[1736876181564,0.01067076,95988.0,95984.0,0.05212]
[1736876181873,0.25019627,95992.0,95991.0,0.052116]
[1736876182466,0.00156346,95992.0,95991.0,0.052116]
[1736876182769,0.004,95988.0,95987.0,0.3608]
[1736876183168,0.004,95988.0,95986.0,0.052119]
[1736876183363,0.052121,95983.0,95980.0,0.412922]
[1736876183574,0.004,95988.0,95980.0,0.3608]
[1736876183883,0.004,95988.0,95986.0,0.052119]
[1736876184065,0.004,95988.0,95987.0,0.001]
[1736876184376,0.013,95988.0,95987.0,0.001]
[1736876184773,0.064118,95988.0,95986.0,0.052119]
[1736876184973,0.060118,95988.0,95986.0,0.052119]
[1736876185377,0.061118,95988.0,95987.0,0.001]
[1736876185763,0.065118,95988.0,95987.0,0.001]
[1736876186173,0.013,95988.0,95987.0,0.001]
[1736876186372,0.013,95988.0,95987.0,0.0347]
[1736876186980,0.013,95988.0,95987.0,0.0337]
[1736876187674,0.065118,95988.0,95987.0,0.001]
[1736876188069,0.065118,95988.0,95981.0,0.3608]
[1736876188070,0.3708,95988.0,95972.0,0.3608]
[1736876188271,0.052122,95982.0,95980.0,0.052122]
[1736876189166,0.3738,95988.0,95971.0,0.0326]
[1736876189167,0.7346,95988.0,95971.0,0.0326]
[1736876189474,0.3608,95976.0,95975.0,0.052125]
[1736876190173,0.003,95982.0,95981.0,0.052122]
[1736876191283,0.3668,95988.0,95971.0,0.0326]
[1736876191479,0.3668,95988.0,95972.0,0.052126]
[1736876191480,0.052126,95973.0,95972.0,0.052126]
[1736876192969,0.052126,95973.0,95971.0,0.0326]
[1736876192970,0.3608,95980.0,95971.0,0.0326]
[1736876193180,0.003,95982.0,95979.0,0.052123]
[1736876193479,0.003,95982.0,95981.0,0.052122]
[1736876193674,0.003,95982.0,95981.0,0.412922]
[1736876193880,0.004,95988.0,95987.0,0.052119]
[1736876194072,0.052115,95995.0,95981.0,1.8614]
[1736876194274,0.052115,95995.0,95981.0,1.8608]
[1736876194479,0.052115,95995.0,95994.0,0.052115]
[1736876195477,0.3608,96039.0,95994.0,0.01126434]
[1736876195671,0.052093,96034.0,96025.0,0.052098]
[1736876195873,0.052091,96038.0,96037.0,0.052091]
[1736876196185,0.3608,96039.0,96038.0,0.052091]
[1736876196480,0.41289,96039.0,96038.0,0.052091]
[1736876197478,0.052093,96034.0,96032.0,0.052094]
[1736876197667,0.052094,96033.0,96032.0,0.052094]
[1736876199076,0.053094,96033.0,96032.0,0.052094]
[1736876199381,0.001,96033.0,96032.0,0.052094]
[1736876199875,0.3608,96054.0,96028.0,0.3608]
[1736876200081,0.3608,96054.0,96053.0,0.052083]
[1736876200576,0.052087,96045.0,96038.0,0.3608]
[1736876200873,0.3608,96046.0,96028.0,0.412896]
[1736876201079,0.052089,96042.0,96028.0,0.412896]
[1736876201479,0.052089,96041.0,96029.0,0.052095]
[1736876201783,0.052089,96041.0,96028.0,0.417896]
[1736876201972,0.052089,96041.0,96038.0,0.003]
[1736876202279,0.05209,96040.0,96038.0,0.003]
[1736876202477,0.052091,96039.0,96037.0,0.052091]
[1736876203180,0.3608,96038.0,96029.0,0.007]
[1736876203481,0.052095,96032.0,96031.0,0.052094]
[1736876204382,0.3608,96036.0,96028.0,0.004]
[1736876204581,0.412896,96029.0,96028.0,0.004]
[1736876204878,0.052107,96008.0,96006.0,0.00156235]
[1736876205081,0.052107,96008.0,96007.0,0.052108]
[1736876205275,0.052107,96008.0,96006.0,0.00156235]
[1736876205784,0.052107,96008.0,96006.0,0.05367035]
[1736876206184,0.052107,96008.0,96007.0,0.002]
[1736876207880,0.052107,96008.0,96006.0,0.05567035]
[1736876208188,0.052107,96008.0,96006.0,0.00256235]
[1736876208375,0.052107,96008.0,96007.0,0.052108]
[1736876208572,0.052107,96008.0,96007.0,0.053108]
[1736876208987,0.052107,96008.0,96007.0,0.052108]
[1736876210389,0.3608,96009.0,96008.0,0.052107]
[1736876210882,0.3608,96019.0,96009.0,0.052107]
[1736876211086,0.3608,96019.0,96018.0,0.052102]
[1736876211282,0.052107,96008.0,96007.0,0.001]
[1736876211478,0.412907,96008.0,96007.0,0.001]
[1736876211785,0.052108,96007.0,96006.0,0.00156235]
[1736876212180,0.3608,96008.0,95987.0,0.0642]
[1736876212380,0.052118,95988.0,95987.0,0.0315]
[1736876213180,0.052122,95982.0,95981.0,0.052122]
[1736876213382,0.052122,95981.0,95980.0,1.50064]
[1736876213582,0.052124,95977.0,95976.0,0.052124]
[1736876213981,0.052124,95977.0,95976.0,1.552124]
[1736876214590,0.412922,95981.0,95980.0,0.061122]
[1736876215183,0.05212,95985.0,95984.0,0.05212]
[1736876216984,0.05212,95985.0,95984.0,0.05412]
[1736876217294,0.05212,95985.0,95984.0,0.05712]
[1736876217494,0.05212,95985.0,95984.0,0.005]
[1736876217792,0.41292,95985.0,95984.0,0.005]
[1736876218594,0.41292,95985.0,95984.0,0.05712]
[1736876218786,0.3608,95985.0,95984.0,0.05712]
[1736876219292,0.41292,95985.0,95984.0,0.05512]
[1736876219488,0.41292,95985.0,95984.0,0.05612]
[1736876219692,0.41292,95985.0,95984.0,1.55612]
[1736876220088,0.41292,95985.0,95984.0,1.55512]
[1736876220287,0.41292,95985.0,95984.0,1.55812]
[1736876220499,0.41292,95985.0,95984.0,1.55512]
[1736876220689,0.41292,95985.0,95984.0,1.55712]
[1736876221594,0.41292,95985.0,95984.0,0.05412]
[1736876221894,0.41292,95985.0,95984.0,0.05512]
[1736876222283,0.41292,95985.0,95984.0,0.003]
[1736876222489,0.41292,95985.0,95984.0,0.001]
[1736876222690,0.052129,95968.0,95967.0,0.00156279]
[1736876223192,0.3608,95972.0,95967.0,0.00156279]
[1736876223397,0.412929,95972.0,95971.0,0.052127]
[1736876223784,0.052124,95977.0,95976.0,0.052125]
[1736876223987,0.01055896,95983.0,95971.0,0.052127]
[1736876224191,0.052122,95982.0,95981.0,0.052121]
[1736876224996,0.3608,95985.0,95984.0,0.05212]
[1736876225494,0.052117,95991.0,95990.0,0.052116]
[1736876227894,0.3608,95993.0,95992.0,0.052116]
[1736876228090,0.002,95991.0,95990.0,0.052117]
[1736876228290,0.3608,96003.0,95990.0,0.052117]
[1736876228495,0.3608,96003.0,96002.0,0.05211]
[1736876229196,0.41291,96003.0,96002.0,0.05211]
[1736876229398,0.052115,95994.0,95991.0,0.052116]
[1736876229593,0.052115,95994.0,95993.0,0.052115]
[1736876229799,0.412915,95994.0,95993.0,0.052115]
[1736876230196,0.052116,95991.0,95990.0,0.18644386]
[1736876230395,0.052116,95991.0,95990.0,0.23856086]
[1736876231301,0.052116,95991.0,95990.0,0.053117]
[1736876231701,0.052116,95991.0,95990.0,0.054117]
[1736876232393,0.052116,95991.0,95990.0,0.052117]
[1736876232594,0.052116,95991.0,95990.0,0.053117]
[1736876233403,0.3608,95994.0,95993.0,0.052115]
[1736876234004,0.3608,96003.0,96002.0,0.05211]
[1736876234191,0.41291,96003.0,96002.0,0.05211]
[1736876235400,0.41291,96003.0,95996.0,0.18544386]
[1736876235401,0.052113,95997.0,95996.0,0.18544386]
[1736876236204,0.052117,95989.0,95988.0,0.052118]
[1736876236405,0.412917,95989.0,95988.0,0.052118]
[1736876236799,0.05212,95985.0,95984.0,0.18544386]
[1736876237592,0.41392,95985.0,95984.0,0.18544386]
[1736876237800,0.052123,95978.0,95977.0,0.18544386]
[1736876238898,0.052123,95978.0,95966.0,0.05213]
[1736876239101,0.052129,95967.0,95966.0,0.05213]
[1736876241092,0.412928,95971.0,95970.0,0.052128]
[1736876241296,0.3608,95971.0,95970.0,0.052128]
[1736876241798,0.412927,95971.0,95970.0,0.052128]
[1736876242003,0.3608,95971.0,95966.0,0.002]
[1736876242204,0.052129,95967.0,95966.0,0.002]
[1736876242403,0.052129,95967.0,95966.0,0.05313]
[1736876243611,0.052129,95967.0,95959.0,1.50056]
[1736876243800,0.052136,95958.0,95957.0,0.052134]
[1736876244000,0.3608,95962.0,95961.0,0.052133]
[1736876244914,0.412932,95962.0,95961.0,0.052133]
[1736876245301,0.412932,95962.0,95961.0,0.054133]
[1736876245707,0.412932,95962.0,95961.0,0.057133]
[1736876247015,0.412932,95962.0,95961.0,0.056133]
[1736876247411,0.412932,95962.0,95961.0,0.053133]
[1736876247607,0.412932,95962.0,95961.0,0.056133]
[1736876247807,0.412932,95962.0,95961.0,0.004]
[1736876248015,0.3608,95962.0,95942.0,0.0333]
[1736876248212,0.052142,95944.0,95943.0,0.23758586]
[1736876248621,0.052142,95944.0,95943.0,0.052142]
[1736876248828,0.3608,95946.0,95941.0,0.00156334]
[1736876249123,0.052143,95942.0,95941.0,0.00156334]
[1736876251423,0.052143,95942.0,95941.0,0.05370734]
[1736876251625,0.052143,95942.0,95941.0,0.05470734]
[1736876251925,0.05214,95949.0,95948.0,0.052138]
[1736876252129,0.11475496,95960.0,95941.0,0.36436334]
[1736876252427,0.052137,95954.0,95953.0,0.052136]
[1736876252629,0.412937,95954.0,95953.0,0.052136]
[1736876253325,0.3608,95954.0,95953.0,0.052136]
[1736876253934,0.412936,95954.0,95953.0,0.052136]
[1736876254532,0.412936,95954.0,95953.0,0.055136]
[1736876255130,0.412936,95954.0,95953.0,0.052136]
[1736876255329,0.414936,95954.0,95953.0,0.054136]
[1736876255628,0.3628,95954.0,95953.0,0.054136]
[1736876255835,0.3608,95963.0,95953.0,0.058136]
[1736876256025,0.3608,95963.0,95962.0,0.052132]
[1736876256337,0.3608,95974.0,95963.0,0.052132]
[1736876256635,0.052124,95977.0,95976.0,0.052125]
[1736876258233,0.001,95977.0,95976.0,0.053125]
[1736876258827,0.052122,95980.0,95979.0,0.052123]
[1736876260135,0.3608,95983.0,95982.0,0.052121]
[1736876260732,0.01036483,96000.0,95999.0,0.052112]
[1736876261628,0.3608,96009.0,96008.0,0.052107]
[1736876262529,0.3608,96018.0,96001.0,0.052111]
[1736876262735,0.00060001,96023.0,96017.0,0.412902]
[1736876263035,0.00156261,96029.0,96028.0,0.052096]
[1736876263236,0.05365861,96029.0,96028.0,0.052096]
[1736876263836,0.00156261,96029.0,96028.0,0.052096]
[1736876265130,0.00256261,96029.0,96028.0,0.052096]
[1736876267028,0.05465861,96029.0,96028.0,0.052096]
[1736876267837,0.00256261,96029.0,96028.0,0.052096]
[1736876268730,0.1004,96050.0,96028.0,0.052096]
[1736876268731,0.3608,96065.0,96028.0,0.052096]
[1736876268938,0.052084,96051.0,96050.0,0.052083]
[1736876270731,0.056084,96051.0,96050.0,0.052083]
[1736876270931,0.004,96051.0,96044.0,0.052087]
[1736876271343,0.061084,96051.0,96050.0,0.001]
[1736876272340,0.052085,96049.0,96035.0,0.052092]
[1736876272646,0.3608,96040.0,96021.0,0.0521]
[1736876272941,0.3608,96040.0,96034.0,0.052093]
[1736876273141,0.052092,96035.0,96034.0,0.052093]
[1736876273338,0.052095,96031.0,96030.0,0.052095]
[1736876274537,0.053095,96031.0,96030.0,0.052095]
[1736876276042,0.055095,96031.0,96030.0,0.052095]
[1736876276940,0.003,96031.0,96001.0,0.3608]
[1736876277143,0.052104,96016.0,96015.0,0.052103]
[1736876277331,0.412904,96016.0,96015.0,0.052103]
[1736876277532,0.052104,96016.0,96015.0,0.052103]
[1736876277941,0.3608,96024.0,96023.0,0.052099]
[1736876278542,0.052098,96025.0,96024.0,0.052098]
[1736876279743,0.052095,96031.0,96030.0,0.052094]
[1736876280247,0.052098,96026.0,96025.0,0.052098]
[1736876282041,0.001,96031.0,96020.0,0.3608]
[1736876282244,0.001,96031.0,96030.0,0.052095]
[1736876282450,0.053095,96031.0,96030.0,0.052095]
[1736876282745,0.052095,96031.0,96030.0,0.052095]
[1736876283334,0.3608,96036.0,96023.0,1.5354]
[1736876283536,0.3608,96036.0,96035.0,0.052092]
[1736876284855,0.416892,96036.0,96035.0,0.052092]
[1736876285242,0.3648,96036.0,96035.0,0.052092]
[1736876286648,0.3658,96036.0,96035.0,0.052092]
[1736876287750,0.417892,96036.0,96035.0,0.052092]
[1736876288640,0.052097,96026.0,96025.0,0.052096]
[1736876288839,0.3658,96036.0,96020.0,0.54688386]
[1736876289152,0.005,96036.0,96035.0,0.052092]
[1736876290347,0.004,96036.0,96035.0,0.052092]
[1736876291149,0.052089,96041.0,96040.0,0.05209]
[1736876291950,0.3608,96044.0,96041.0,0.052089]
[1736876292346,0.05365139,96042.0,96041.0,0.052089]
[1736876294648,0.05865139,96042.0,96041.0,0.053089]
[1736876294950,0.06065139,96042.0,96041.0,0.053089]
[1736876295354,0.06065139,96042.0,96041.0,0.001]
[1736876296455,0.07090304,96042.0,96041.0,0.001]
[1736876297448,0.19953997,96042.0,96028.0,0.052096]
[1736876297649,0.052096,96029.0,96028.0,0.052096]
[1736876297855,0.052096,96029.0,96018.0,0.0521]
[1736876297856,0.052101,96019.0,96018.0,0.0521]
[1736876298154,0.052106,96015.0,96014.0,0.052104]
[1736876298356,0.3608,96018.0,96008.0,1.50056]
[1736876298556,0.052107,96009.0,96008.0,1.552107]
[1736876298749,0.052104,96014.0,96013.0,0.052102]
[1736876298943,0.01028703,96019.0,96018.0,0.052102]
[1736876298944,0.06238903,96019.0,96018.0,0.052102]
[1736876299359,0.24963281,96029.0,96011.0,0.052105]
[1736876299654,0.412898,96026.0,96025.0,0.052098]
[1736876300246,0.052098,96026.0,96025.0,0.052098]
[1736876301250,0.052101,96021.0,96020.0,0.052099]
[1736876301450,0.13523552,96026.0,96025.0,0.052098]
[1736876301647,0.08313752,96026.0,96025.0,0.052098]
[1736876302456,0.31135928,96050.0,96046.0,0.052087]
[1736876302457,0.412887,96047.0,96046.0,0.052087]
[1736876302658,0.3608,96047.0,96031.0,0.052095]
[1736876302857,0.052091,96042.0,96041.0,0.052089]
[1736876303459,0.052091,96042.0,96026.0,0.0339]
[1736876303763,0.052093,96037.0,96036.0,0.05209]
[1736876304958,0.054093,96037.0,96036.0,0.05209]
[1736876305160,0.059093,96037.0,96036.0,0.05209]
[1736876305358,0.059093,96037.0,96036.0,0.23831492]
[1736876306455,0.057093,96037.0,96036.0,0.05309]
[1736876307057,0.052093,96037.0,96036.0,0.05309]
[1736876307456,0.052093,96037.0,96036.0,0.05409]
[1736876307658,0.052093,96037.0,96036.0,0.05309]
[1736876307963,0.052093,96037.0,96036.0,0.05409]
[1736876308164,0.052088,96046.0,96045.0,0.052087]
[1736876308357,0.052081,96056.0,96049.0,0.052085]
[1736876310664,0.00156216,96070.0,96069.0,0.052074]
[1736876312469,0.00756216,96070.0,96069.0,0.053074]
[1736876313573,0.01256216,96070.0,96069.0,1.553074]
[1736876314660,0.00756216,96070.0,96069.0,1.553074]
[1736876314860,0.00456216,96070.0,96069.0,1.552074]
[1736876315071,0.01056216,96070.0,96069.0,1.553074]
[1736876315669,0.01056216,96070.0,96069.0,0.053074]
[1736876319473,0.009,96070.0,96069.0,0.053074]
[1736876321466,0.052066,96085.0,96084.0,0.052066]
[1736876322673,0.057066,96085.0,96084.0,0.053066]
[1736876322871,0.060066,96085.0,96084.0,0.053066]
[1736876323475,0.057066,96085.0,96084.0,0.053066]
[1736876323677,0.059066,96085.0,96084.0,0.053066]
[1736876325177,0.054066,96085.0,96084.0,0.052066]
[1736876326172,0.052071,96075.0,96070.0,0.0356]
[1736876326666,0.052071,96075.0,96074.0,0.052071]
[1736876327666,0.3608,96081.0,96067.0,0.3608]
[1736876327871,0.052065,96087.0,96086.0,0.052064]
[1736876328779,0.052066,96084.0,96082.0,0.052067]
[1736876329178,0.052066,96084.0,96083.0,0.052066]
[1736876330678,0.054066,96084.0,96083.0,0.052066]
[1736876331773,0.414866,96084.0,96083.0,0.052066]
[1736876332172,0.414866,96084.0,96073.0,0.052072]
[1736876332173,0.05207,96080.0,96079.0,0.052069]
[1736876332783,0.05207,96080.0,96067.0,0.3608]
[1736876332784,0.052073,96076.0,96075.0,0.052071]
[1736876333282,0.412873,96076.0,96075.0,0.052071]
[1736876333481,0.052076,96066.0,96065.0,0.052076]
[1736876333676,0.052077,96063.0,96061.0,0.052078]
[1736876333884,0.052077,96063.0,96058.0,0.18580089]
[1736876334178,0.052077,96063.0,96045.0,0.0337]
[1736876334384,0.052077,96063.0,96054.0,0.052082]
[1736876334684,0.052077,96063.0,96052.0,0.052083]
[1736876334886,0.06265593,96063.0,96054.0,0.052082]
[1736876335181,0.37237893,96063.0,96035.0,0.00156187]
[1736876335382,0.05209,96041.0,96040.0,0.052088]
[1736876335577,0.05209,96040.0,96038.0,0.052091]
[1736876335784,0.0352,96048.0,96038.0,0.052091]
[1736876335976,0.052092,96036.0,96035.0,0.00156187]
[1736876337374,0.052092,96036.0,96035.0,0.00256187]
[1736876338081,0.052092,96037.0,96036.0,0.052091]
[1736876339386,0.052092,96037.0,96036.0,0.053091]
[1736876339584,0.052092,96037.0,96036.0,0.055091]
[1736876339982,0.052092,96037.0,96036.0,0.003]
[1736876341888,0.052092,96037.0,96036.0,0.002]
[1736876342281,0.01065174,96038.0,96035.0,0.00156187]
[1736876342481,0.052092,96036.0,96035.0,0.00156187]
[1736876343187,0.052092,96036.0,96035.0,0.05365387]
[1736876344189,0.3608,96040.0,96039.0,0.05209]
[1736876344592,0.41289,96040.0,96039.0,0.05209]
[1736876344892,0.05209,96040.0,96039.0,0.05209]
[1736876345092,0.05209,96040.0,96039.0,1.55209]
[1736876345586,0.05209,96040.0,96039.0,0.05209]
[1736876350394,0.052092,96036.0,96035.0,0.00156187]
[1736876350593,0.052092,96036.0,96035.0,0.05365387]
[1736876351788,0.052092,96036.0,96035.0,0.00156187]
[1736876352492,0.052092,96036.0,96035.0,0.05465387]
[1736876353182,0.41289,96041.0,96040.0,0.05209]
[1736876356199,0.052092,96036.0,96035.0,0.05365387]
[1736876358097,0.052092,96036.0,96035.0,0.05465387]
[1736876358398,0.052092,96036.0,96035.0,0.05565387]
[1736876358795,0.052092,96036.0,96035.0,0.00356187]
[1736876358990,0.053092,96036.0,96023.0,0.18580089]
[1736876359186,0.052098,96024.0,96023.0,0.18580089]
[1736876360500,0.052107,96011.0,96010.0,0.052106]
[1736876361999,0.052107,96011.0,96010.0,0.057106]
[1736876362505,0.052107,96011.0,96010.0,0.054106]
[1736876362696,0.053107,96011.0,96010.0,0.006]
[1736876363198,0.052107,96011.0,96010.0,0.006]
[1736876364199,0.3608,96014.0,96010.0,0.003]
[1736876364401,0.3608,96018.0,96011.0,0.0649]
[1736876364610,0.052104,96015.0,96014.0,0.052103]
[1736876365296,0.052104,96015.0,96014.0,1.552103]
[1736876365997,0.052104,96015.0,96014.0,1.555103]
[1736876366804,0.3608,96018.0,96014.0,1.555103]
[1736876367105,0.412898,96026.0,96025.0,0.052098]
[1736876368307,0.413898,96026.0,96025.0,0.052098]
[1736876368698,0.052106,96012.0,96011.0,0.052105]
[1736876368901,0.052103,96017.0,96016.0,0.052102]
[1736876369716,0.052105,96013.0,96012.0,0.052104]
[1736876371710,0.052105,96013.0,96012.0,0.057104]
[1736876372806,0.412902,96018.0,96017.0,0.052102]
[1736876373011,0.052102,96018.0,96017.0,0.052102]
[1736876375015,0.052102,96018.0,96017.0,0.053102]
[1736876375211,0.0333,96025.0,96017.0,0.001]
[1736876375412,0.052095,96031.0,96030.0,0.052094]
[1736876375713,0.052095,96031.0,96020.0,0.3608]
[1736876375714,0.052092,96036.0,96035.0,0.052092]
[1736876375906,0.3608,96037.0,96029.0,0.3608]
[1736876375907,0.3608,96037.0,96036.0,0.052092]
[1736876376610,0.01037236,96043.0,96036.0,0.052092]
[1736876376811,0.00156232,96046.0,96045.0,0.052087]
[1736876377117,0.05209,96040.0,96039.0,0.05209]
[1736876377415,0.00156232,96046.0,96038.0,1.8608]
[1736876377607,0.052087,96045.0,96044.0,0.052087]
[1736876377808,0.00156232,96046.0,96045.0,0.052087]
[1736876378009,0.052077,96064.0,96063.0,0.052077]
[1736876379002,0.052077,96064.0,96054.0,0.47555496]
[1736876379003,0.3608,96065.0,96064.0,0.052077]
[1736876379208,0.052075,96067.0,96066.0,0.052076]
[1736876380513,0.052076,96066.0,96065.0,0.052076]
[1736876381816,0.053076,96066.0,96065.0,0.053076]
[1736876382315,0.057076,96066.0,96065.0,0.053076]
[1736876382711,0.057076,96066.0,96065.0,0.001]
[1736876383316,0.057076,96066.0,96065.0,0.053076]
[1736876383616,0.057076,96066.0,96065.0,0.001]
[1736876384018,0.057076,96066.0,96065.0,0.053076]
[1736876384912,0.057076,96066.0,96065.0,0.001]
[1736876388017,0.058076,96066.0,96065.0,0.001]
[1736876389423,0.057076,96066.0,96065.0,0.001]
[1736876393626,0.005,96066.0,96065.0,0.001]
[1736876393811,0.005,96066.0,96065.0,0.0341]
[1736876394211,0.004,96066.0,96065.0,0.0341]
[1736876394411,0.36236162,96086.0,96085.0,0.052065]
[1736876395628,0.36436162,96086.0,96085.0,0.052065]
[1736876397413,0.41642662,96086.0,96085.0,0.052065]
[1736876400427,0.36436162,96086.0,96085.0,0.052065]
[1736876400729,0.00356162,96086.0,96085.0,0.052065]
[1736876401421,0.1,96100.0,96099.0,0.052058]
[1736876402624,0.1,96100.0,96099.0,0.053058]
[1736876402823,0.152057,96100.0,96099.0,0.053058]
[1736876403532,0.512857,96100.0,96099.0,0.001]
[1736876403834,0.513857,96100.0,96099.0,0.001]
[1736876405026,0.7628,96100.0,96077.0,0.00156118]
[1736876405325,0.052069,96078.0,96077.0,0.00156118]
[1736876406231,0.052069,96078.0,96077.0,0.05363118]
[1736876406934,0.052069,96078.0,96077.0,0.00156118]
[1736876407318,0.05208,96063.0,96062.0,0.052078]
[1736876407527,0.052082,96059.0,96054.0,0.0331]
[1736876407731,0.052082,96055.0,96054.0,0.0331]
[1736876407925,0.052084,96051.0,96050.0,1.50056]
[1736876408125,0.052084,96051.0,96050.0,0.00056]
[1736876408325,0.3608,96057.0,96046.0,0.00037]
[1736876408529,0.3608,96049.0,96046.0,0.00037]
[1736876408733,0.052086,96047.0,96046.0,0.00037]
[1736876409625,0.052086,96047.0,96046.0,0.00937]
[1736876410231,0.052086,96047.0,96046.0,0.00037]
[1736876410527,0.054086,96047.0,96046.0,0.058457]
[1736876411223,0.002,96047.0,96046.0,0.052457]
[1736876411428,0.003,96047.0,96046.0,0.052457]
[1736876412133,0.003,96047.0,96046.0,1.552457]
[1736876412533,0.001,96047.0,96046.0,1.552457]
[1736876412729,0.3608,96049.0,96046.0,1.50137]
[1736876413037,0.3608,96049.0,96048.0,0.052085]
[1736876413735,0.3608,96049.0,96048.0,1.552085]
[1736876413924,0.412885,96049.0,96048.0,1.552085]
[1736876415236,0.412885,96049.0,96048.0,1.553085]
[1736876415640,0.413885,96049.0,96048.0,1.553085]
[1736876416929,0.053085,96049.0,96048.0,1.553085]
[1736876417435,0.05288607,96049.0,96048.0,0.053085]
[1736876417941,0.05288607,96049.0,96048.0,1.553085]
[1736876418439,0.001,96049.0,96048.0,0.053085]
[1736876418639,0.05208,96059.0,96049.0,0.052084]
[1736876418832,0.05208,96059.0,96058.0,0.05208]
[1736876420334,0.002,96059.0,96051.0,0.052084]
[1736876420639,0.002,96059.0,96052.0,1.5]
[1736876420840,0.002,96059.0,96058.0,0.05208]
[1736876422338,0.001,96059.0,96058.0,0.05208]
[1736876422529,0.001,96059.0,96058.0,0.05308]
[1736876422928,0.001,96059.0,96058.0,0.41388]
[1736876423132,0.052066,96084.0,96075.0,0.052071]
[1736876423333,0.36136001,96089.0,96087.0,0.052064]
[1736876423538,0.3608,96089.0,96088.0,0.052064]
[1736876424838,0.413863,96089.0,96088.0,0.052064]
[1736876425041,0.3618,96089.0,96088.0,0.052064]
[1736876425731,0.3628,96089.0,96088.0,0.053064]
[1736876426642,0.414863,96089.0,96088.0,0.053064]
[1736876429231,0.414863,96089.0,96088.0,0.001]
[1736876430248,0.414863,96089.0,96088.0,0.053064]
[1736876431045,0.414863,96089.0,96088.0,0.001]
[1736876431945,0.414863,96089.0,95981.0,0.90064527]
[1736876431946,0.415863,96089.0,96059.0,1.8913]
[1736876432247,0.05207,96076.0,96075.0,0.05207]
[1736876433340,0.05307,96076.0,96075.0,0.05207]
[1736876434041,0.052075,96072.0,96071.0,0.052073]
[1736876434244,0.052077,96068.0,96067.0,0.052075]
[1736876434751,0.412877,96068.0,96067.0,0.052075]
[1736876435143,0.3608,96068.0,96060.0,0.0313]
[1736876435339,0.052078,96063.0,96062.0,0.052077]
[1736876436047,0.052079,96060.0,96059.0,1.50056]
[1736876436243,0.052084,96050.0,96044.0,0.05364862]
[1736876436747,0.052084,96050.0,96041.0,0.052089]
[1736876436948,0.082484,96050.0,96039.0,1.8921]
[1736876437549,0.082484,96050.0,96039.0,0.3921]
[1736876437756,0.082484,96050.0,96043.0,0.052088]
[1736876437949,0.082484,96050.0,96039.0,0.3921]
[1736876438141,0.082484,96050.0,96036.0,1.5]
[1736876438552,0.084484,96050.0,96036.0,1.5]
[1736876438751,0.052091,96037.0,96036.0,1.5]
[1736876438945,0.052091,96037.0,96030.0,0.18565628]
[1736876438946,0.3608,96037.0,96030.0,0.18565628]
[1736876439154,0.052095,96031.0,96030.0,0.23775128]
[1736876440358,0.052095,96031.0,96030.0,0.004]
[1736876441163,0.01042458,96035.0,96025.0,0.412898]
[1736876441369,0.052097,96026.0,96025.0,0.412898]
[1736876441562,0.052101,96020.0,96019.0,0.052101]
[1736876441756,0.052102,96017.0,96016.0,0.18565628]
[1736876442369,0.052102,96017.0,96013.0,0.18565628]
[1736876442959,0.052103,96016.0,96015.0,0.052103]
[1736876445259,0.054103,96016.0,96015.0,0.052103]
[1736876445657,0.054103,96016.0,96015.0,1.552103]
[1736876446062,0.002,96016.0,96015.0,1.552103]